bitfinex-derivatives/quotes_ETHF0:USTF0_20250426
["timestamp","ask_amount","ask_price","bid_price","bid_amount"]
[1745671683634,1.11311,1796.2,1796.0,9.9499]
[1745671683830,0.8374,1796.1,1796.0,9.9499]
[1745671684041,3.54366,1796.1,1796.0,3.2078]
[1745671684234,3.54366,1796.1,1796.0,8.5158]
[1745671685038,3.54366,1796.1,1796.0,5.308]
[1745671685645,2.4305,1796.1,1796.0,5.308]
[1745671686446,3.54366,1796.1,1796.0,5.308]
[1745671690945,11.8425768,1796.1,1796.0,3.98005]
[1745671691150,1.11351,1795.6,1795.4,3.3191]
[1745671692051,1.11351,1795.6,1795.5,1.604]
[1745671692652,2.79051,1795.6,1795.5,1.604]
[1745671693246,2.79051,1795.6,1795.5,6.912]
[1745671698660,2.79051,1795.6,1795.5,5.308]
[1745671699160,6.67251,1795.6,1795.5,5.308]
[1745671701663,14.88031,1795.6,1795.5,4.00881]
[1745671701956,1.11393,1794.9,1794.7,3.2078]
[1745671702363,1.7361,1794.8,1794.7,4.7969]
[1745671703261,7.0898,1795.1,1794.7,10.1049]
[1745671703457,3.882,1795.1,1794.9,1.11391]
[1745671703658,3.882,1795.1,1795.0,3.2233]
[1745671704057,3.882,1795.1,1795.0,8.5313]
[1745671704663,4.99578,1795.1,1795.0,8.5313]
[1745671704855,6.65328,1795.1,1795.0,8.5313]
[1745671705361,1.6575,1795.1,1795.0,8.5313]
[1745671705561,7.0908,1795.3,1795.0,9.64514]
[1745671705760,1.11372,1795.2,1795.1,1.644]
[1745671707460,2.77122,1795.2,1795.1,1.644]
[1745671708955,1.11372,1795.2,1795.1,1.644]
[1745671709453,1.11371,1795.3,1795.1,1.644]
[1745671709758,4.99663,1795.4,1795.1,5.96555]
[1745671710059,6.05858,1795.5,1795.2,1.11371]
[1745671710356,6.05855,1795.5,1795.3,0.8096]
[1745671710558,6.05855,1795.5,1795.4,1.6592]
[1745671710962,4.945,1795.5,1795.1,3.2078]
[1745671711159,1.11369,1795.3,1795.1,2.4656]
[1745671711556,1.90739,1795.3,1795.1,3.57938]
[1745671712059,1.90739,1795.3,1795.2,1.656]
[1745671712462,1.11369,1795.3,1795.2,1.656]
[1745671713157,1.11369,1795.3,1795.2,6.964]
[1745671717170,1.11362,1795.4,1795.2,8.07768]
[1745671717372,1.11362,1795.4,1795.3,1.6171]
[1745671718166,1.11362,1795.4,1795.3,6.9251]
[1745671718167,2.82132,1795.4,1795.3,6.9251]
[1745671718363,3.68982,1795.4,1795.3,5.308]
[1745671722265,2.5762,1795.4,1795.3,5.308]
[1745671722470,3.2078,1795.5,1795.3,5.308]
[1745671722666,4.32133,1795.5,1795.4,1.6329]
[1745671722868,5.90003,1795.5,1795.4,1.6329]
[1745671723177,5.90003,1795.5,1795.4,6.9409]
[1745671724273,5.90003,1795.5,1795.4,5.308]
[1745671724975,5.99117825,1795.5,1795.4,5.308]
[1745671726572,2.78337825,1795.5,1795.4,5.308]
[1745671726871,2.69223,1795.5,1795.4,5.308]
[1745671727078,2.78337947,1795.5,1795.4,5.308]
[1745671727367,2.78338083,1795.5,1795.4,5.308]
[1745671729373,2.78337894,1795.5,1795.4,5.308]
[1745671729577,2.69223,1795.5,1795.4,5.308]
[1745671730778,2.69223,1795.5,1795.4,7.0313]
[1745671730981,2.69223,1795.5,1795.4,7.8359]
[1745671740787,2.69223,1795.5,1795.4,5.308]
[1745671741186,5.90003,1795.5,1795.4,5.308]
[1745671742189,2.78424,1795.3,1794.6,9.1258]
[1745671742386,3.2078,1795.1,1794.8,1.11395]
[1745671742582,3.2078,1795.1,1794.9,1.7145]
[1745671742787,3.2078,1795.1,1795.0,0.8232]
[1745671742988,3.2078,1795.1,1795.0,1.6937]
[1745671743186,3.2078,1795.1,1795.0,8.7162]
[1745671744987,1.6627,1795.4,1795.0,8.7162]
[1745671745183,6.65434,1795.4,1795.1,2.81847]
[1745671745387,1.11366,1795.3,1795.2,1.7047]
[1745671745798,8.37013,1795.4,1795.2,1.7047]
[1745671745994,1.11366,1795.3,1795.2,1.7047]
[1745671746196,1.11366,1795.3,1795.2,7.0127]
[1745671746496,1.11364,1795.4,1795.2,7.0127]
[1745671746697,1.11364,1795.4,1795.3,2.5416]
[1745671746897,1.11364,1795.4,1795.3,3.3974]
[1745671747197,1.11364,1795.4,1795.3,8.7054]
[1745671747496,6.20478841,1795.4,1795.3,5.308]
[1745671747797,7.93670232,1795.4,1795.3,5.308]
[1745671748199,7.93670232,1795.4,1795.1,2.5803]
[1745671748200,1.11372,1795.2,1795.1,2.5803]
[1745671748793,2.84562,1795.2,1795.1,2.5803]
[1745671749997,2.84562,1795.2,1795.1,3.3676]
[1745671750398,1.11372,1795.2,1795.1,3.3676]
[1745671750696,3.2078,1795.3,1795.1,3.3676]
[1745671750894,4.32146,1795.3,1795.2,1.7332]
[1745671751098,3.2078,1795.3,1795.2,1.7332]
[1745671751298,4.32146,1795.3,1795.2,7.0412]
[1745671752794,1.11366,1795.3,1795.2,7.0412]
[1745671755499,1.11366,1795.3,1795.2,5.308]
[1745671755704,2.76946,1795.3,1795.2,5.308]
[1745671755895,2.86062434,1795.3,1795.2,5.308]
[1745671756099,4.45002442,1795.3,1795.2,5.308]
[1745671757404,4.35886,1795.3,1795.2,5.308]
[1745671757604,4.45003038,1795.3,1795.2,5.308]
[1745671758203,1.11378,1795.1,1795.0,12.8147]
[1745671758905,2.80488,1795.1,1795.0,12.8147]
[1745671759491,2.80488,1795.1,1795.0,5.308]
[1745671759698,2.80488,1795.1,1795.0,4.15844]
[1745671759699,7.89605134,1795.1,1795.0,4.15844]
[1745671759905,7.89605663,1795.1,1795.0,0.91039]
[1745671760311,1.11409,1794.6,1794.5,7.5888]
[1745671760798,1.11409,1794.6,1794.5,5.918]
[1745671761001,1.11428,1794.3,1794.2,5.918]
[1745671761804,2.77448,1794.3,1794.2,5.918]
[1745671762104,2.77448,1794.3,1794.2,11.226]
[1745671766306,3.2078,1794.4,1794.2,11.226]
[1745671766501,1.11422,1794.4,1794.3,1.6612]
[1745671766708,1.11422,1794.4,1794.3,2.5274]
[1745671767113,1.11422,1794.4,1794.3,7.8354]
[1745671767710,1.11422,1794.4,1794.3,5.308]
[1745671768606,1.97082,1794.4,1794.3,5.308]
[1745671769311,1.97082,1794.4,1794.3,7.0119]
[1745671769509,1.97082,1794.4,1794.3,5.308]
[1745671770405,3.57902,1794.4,1794.3,5.308]
[1745671770716,2.4648,1794.4,1794.3,5.308]
[1745671770907,1.6082,1794.4,1794.3,5.308]
[1745671771208,2.72242,1794.4,1794.3,5.308]
[1745671772114,2.81363617,1794.4,1794.3,5.308]
[1745671772506,2.72242,1794.4,1794.3,5.308]
[1745671773104,2.81363467,1794.4,1794.3,5.308]
[1745671773316,1.1144,1794.2,1794.0,4.0199]
[1745671773613,1.1144,1794.1,1794.0,6.4987]
[1745671774110,1.1144,1794.1,1794.0,11.8067]
[1745671775712,1.1144,1794.1,1794.0,5.308]
[1745671776219,2.8005,1794.1,1794.0,5.308]
[1745671777417,1.1144,1794.1,1794.0,5.308]
[1745671777618,3.2078,1794.2,1794.0,5.308]
[1745671777818,4.3222,1794.2,1794.1,2.5206]
[1745671778118,4.3222,1794.2,1794.1,3.3104]
[1745671778812,4.48302,1794.3,1794.1,3.3104]
[1745671779020,2.80038,1794.3,1794.2,1.6074]
[1745671780218,2.80038,1794.3,1794.2,6.9154]
[1745671780721,1.11428,1794.3,1794.2,6.9154]
[1745671782614,5.5959,1794.5,1794.2,10.1232]
[1745671782615,1.7209,1794.5,1794.2,10.1232]
[1745671782817,3.2078,1794.6,1794.3,1.7331]
[1745671782818,1.11422,1794.4,1794.3,1.7331]
[1745671784322,1.11422,1794.4,1794.3,7.0411]
[1745671786520,4.6953,1794.7,1794.3,8.15537]
[1745671786721,1.11414,1794.6,1794.4,3.2776]
[1745671786920,1.11414,1794.6,1794.5,1.6327]
[1745671787309,4.38666,1794.7,1794.5,1.6327]
[1745671787513,4.98506,1794.7,1794.5,1.6327]
[1745671787710,1.11409,1794.6,1794.5,1.6327]
[1745671788119,1.11409,1794.6,1794.5,6.9407]
[1745671788320,6.70888,1794.7,1794.5,6.9407]
[1745671788520,6.70888,1794.7,1794.6,1.5776]
[1745671789119,9.91668,1794.7,1794.6,1.5776]
[1745671789522,9.91668,1794.7,1794.5,5.308]
[1745671789523,1.11409,1794.6,1794.5,5.308]
[1745671789824,4.53969,1794.6,1794.5,5.308]
[1745671790022,2.83789,1794.6,1794.5,5.308]
[1745671790322,2.83789,1794.6,1794.5,7.0347]
[1745671791523,3.2078,1794.7,1794.5,8.14884]
[1745671791722,3.2078,1794.7,1794.6,1.7267]
[1745671791923,4.32183,1794.7,1794.6,1.7267]
[1745671792518,3.2078,1794.7,1794.6,1.7267]
[1745671792718,4.32183,1794.7,1794.6,1.7267]
[1745671793124,3.2078,1794.7,1794.6,1.7267]
[1745671793427,4.32183,1794.7,1794.6,1.7267]
[1745671794221,1.11409,1794.6,1794.5,5.308]
[1745671794422,2.85019,1794.6,1794.5,6.9486]
[1745671795227,1.11409,1794.6,1794.5,6.9486]
[1745671795731,2.85019,1794.6,1794.5,6.9486]
[1745671796930,11.81238259,1794.6,1794.5,4.17052]
[1745671797230,1.11428,1794.3,1794.2,5.918]
[1745671797730,1.11434,1794.2,1794.1,1.6592]
[1745671798126,3.2844,1794.3,1794.1,2.77359]
[1745671798326,1.7092,1794.3,1794.1,2.77359]
[1745671798526,1.7092,1794.3,1794.2,1.6592]
[1745671798831,1.11426,1794.4,1794.2,1.6592]
[1745671799021,2.8234,1794.5,1794.3,2.73868]
[1745671799226,2.8234,1794.5,1794.4,1.7359]
[1745671800235,2.8234,1794.5,1794.4,7.0439]
[1745671801839,2.8234,1794.5,1794.4,5.308]
[1745671806058,2.8234,1794.5,1794.4,6.9732]
[1745671809760,2.8234,1794.5,1794.4,5.308]
[1745671812058,2.8234,1794.5,1794.4,6.9939]
[1745671812861,1.1142,1794.5,1794.4,6.9939]
[1745671814454,1.11413,1794.6,1794.4,6.9939]
[1745671814655,1.11413,1794.6,1794.5,1.7093]
[1745671815053,1.11413,1794.6,1794.5,7.0173]
[1745671818960,1.11413,1794.6,1794.5,5.308]
[1745671819473,2.76733,1794.6,1794.5,5.308]
[1745671820060,5.97513,1794.6,1794.5,5.308]
[1745671821468,6.06633458,1794.6,1794.5,5.308]
[1745671821969,6.06633427,1794.6,1794.5,5.308]
[1745671825061,6.06633611,1794.6,1794.5,5.308]
[1745671826470,2.85853611,1794.6,1794.5,5.308]
[1745671826665,2.76733,1794.6,1794.5,5.308]
[1745671828762,5.97513,1794.6,1794.5,5.308]
[1745671830166,6.06633188,1794.6,1794.5,5.308]
[1745671830366,5.97513,1794.6,1794.5,5.308]
[1745671835275,6.06633218,1794.6,1794.5,5.308]
[1745671835468,6.0663322,1794.6,1794.5,5.308]
[1745671835664,5.97513,1794.6,1794.5,5.308]
[1745671835866,6.06633224,1794.6,1794.5,5.308]
[1745671837272,6.06633701,1794.6,1794.5,5.308]
[1745671837873,6.06633701,1794.6,1794.5,4.18226]
[1745671838266,1.11428,1794.3,1794.2,5.918]
[1745671838863,2.77588,1794.3,1794.2,5.918]
[1745671839262,2.77588,1794.3,1794.2,11.226]
[1745671839666,2.77588,1794.3,1794.2,5.308]
[1745671839971,2.86710089,1794.3,1794.2,5.308]
[1745671840269,2.86710413,1794.3,1794.2,5.308]
[1745671840467,7.86710413,1794.3,1794.2,4.10412]
[1745671840674,7.86710413,1794.3,1794.2,0.51159]
[1745671840874,7.86710413,1794.3,1794.2,1e-05]
[1745671841075,8.27898392,1794.3,1794.2,1e-05]
[1745671841274,1.11465,1793.7,1793.6,5.918]
[1745671841773,1.11465,1793.7,1793.6,7.5162]
[1745671843380,1.11465,1793.7,1793.6,5.918]
[1745671843771,1.11465,1793.7,1793.6,9.1306]
[1745671844376,1.11465,1793.7,1793.6,5.918]
[1745671844974,2.68885,1793.7,1793.6,5.918]
[1745671845272,2.68885,1793.7,1793.6,7.6318]
[1745671845581,2.68885,1793.7,1793.6,5.918]
[1745671846381,2.68885,1793.7,1793.6,7.6318]
[1745671850680,2.68885,1793.7,1793.5,5.308]
[1745671850681,1.11471,1793.6,1793.5,5.308]
[1745671850881,2.71301,1793.6,1793.5,5.308]
[1745671851076,5.92081,1793.6,1793.5,7.015]
[1745671851877,5.92081,1793.6,1793.5,5.308]
[1745671852077,6.01207327,1793.6,1793.5,5.308]
[1745671852279,3.29906327,1793.6,1793.3,3.3792]
[1745671852485,4.32253,1793.6,1793.3,4.49408]
[1745671852785,4.32253,1793.6,1793.4,1.707]
[1745671853084,1.11478,1793.5,1793.4,1.707]
[1745671853288,3.2078,1793.8,1793.4,15.2228]
[1745671853576,1.11468,1793.7,1793.4,11.33759]
[1745671853781,1.1147,1793.7,1793.5,1.707]
[1745671853985,1.1147,1793.7,1793.6,0.8271]
[1745671854174,1.1147,1793.7,1793.6,1.6709]
[1745671854789,1.1147,1793.7,1793.6,3.3282]
[1745671855284,1.1147,1793.7,1793.6,9.2462]
[1745671855585,1.11464,1793.8,1793.6,9.2462]
[1745671855785,1.11464,1793.8,1793.7,1.6573]
[1745671856285,1.11464,1793.8,1793.7,6.9653]
[1745671860590,1.91174,1793.8,1793.7,6.9653]
[1745671861390,1.91174,1793.8,1793.7,5.308]
[1745671863594,1.11464,1793.8,1793.7,5.308]
[1745671863794,3.2078,1794.0,1793.7,13.6076]
[1745671863995,3.2078,1794.0,1793.8,1.6619]
[1745671864294,4.32227,1794.0,1793.8,1.6619]
[1745671864695,1.11453,1793.9,1793.8,1.6619]
[1745671865197,1.11453,1793.9,1793.8,6.9699]
[1745671866396,4.32231,1794.0,1793.8,6.9699]
[1745671866597,1.11443,1794.1,1793.9,1.5947]
[1745671866799,1.11443,1794.1,1793.9,2.70921]
[1745671867196,3.2078,1794.2,1794.0,1.5947]
[1745671867397,4.3222,1794.2,1794.1,1.7049]
[1745671868101,4.0012,1794.5,1794.1,6.7049]
[1745671868406,1.11431,1794.3,1794.2,1.5947]
[1745671868610,1.11424,1794.4,1794.2,1.5947]
[1745671869204,1.11424,1794.4,1794.2,8.01703]
[1745671869412,1.11428,1794.3,1794.2,6.9027]
[1745671869699,1.11428,1794.3,1794.2,5.308]
[1745671869900,1.11426,1794.4,1794.2,6.42234]
[1745671872406,2.84419,1794.5,1794.3,1.11428]
[1745671872906,1.90604,1794.6,1794.4,1.11421]
[1745671873106,1.11415,1794.5,1794.4,1.11421]
[1745671873308,1.11415,1794.5,1794.4,1.11422]
[1745671873504,1.11415,1794.5,1794.4,0.8351]
[1745671874304,1.11415,1794.5,1794.4,6.1431]
[1745671874504,2.79455,1794.5,1794.4,6.1431]
[1745671875206,2.79455,1794.5,1794.4,5.308]
[1745671878011,1.6804,1794.5,1794.4,6.42222]
[1745671878707,5.17538,1794.7,1794.5,1.11415]
[1745671878906,4.8771,1794.7,1794.6,1.11409]
[1745671879103,6.08233021,1794.7,1794.5,8.09011]
[1745671879304,5.99113,1794.7,1794.5,8.09011]
[1745671880301,1.11409,1794.6,1794.5,6.976]
[1745671880712,5.99117,1794.7,1794.5,6.976]
[1745671881211,5.99117,1794.7,1794.5,8.09013]
[1745671881608,0.8048,1795.0,1794.5,12.894]
[1745671881911,3.59383,1795.1,1794.8,1.11394]
[1745671882109,3.59383,1795.1,1794.8,6.42194]
[1745671882619,1.6226,1795.0,1794.9,2.75211]
[1745671882806,1.6226,1795.0,1794.9,3.3594]
[1745671883113,1.6226,1795.0,1794.9,8.6674]
[1745671883301,1.6226,1795.0,1794.9,9.78131]
[1745671884011,0.8574,1795.1,1794.9,9.78131]
[1745671884212,1.97118,1795.1,1795.0,1.6382]
[1745671884413,3.70818,1795.1,1795.0,1.6382]
[1745671885113,3.70818,1795.1,1795.0,6.9462]
[1745671885616,3.70818,1795.1,1795.0,5.308]
[1745671889714,6.91598,1795.1,1795.0,5.308]
[1745671892113,3.70818,1795.1,1795.0,5.308]
[1745671892818,3.79935382,1795.1,1795.0,5.308]
[1745671893019,3.70818,1795.1,1795.0,5.308]
[1745671894713,3.7993552,1795.1,1795.0,5.308]
[1745671895909,3.70818,1795.1,1795.0,5.308]
[1745671900615,6.91598,1795.1,1795.0,5.308]
[1745671900820,3.70818,1795.1,1795.0,5.308]
[1745671901215,2.85078,1795.1,1795.0,5.308]
[1745671901820,2.85078,1795.1,1795.0,7.0182]
[1745671905632,2.85078,1795.1,1795.0,5.308]
[1745671905929,15.00575374,1795.1,1795.0,4.01362]
[1745671906131,1.11422,1794.4,1794.3,3.2078]
[1745671906523,1.11422,1794.4,1794.3,4.9206]
[1745671907132,5.16205,1794.6,1794.3,11.34287]
[1745671907336,1.11415,1794.5,1794.4,1.7128]
[1745671907831,2.72375,1794.5,1794.4,1.7128]
[1745671908227,2.72375,1794.5,1794.4,7.0208]
[1745671910834,1.11415,1794.5,1794.4,7.0208]
[1745671915532,2.86135,1794.5,1794.4,7.0208]
[1745671916333,2.86135,1794.5,1794.4,5.308]
[1745671918431,2.86135,1794.5,1794.4,6.9161]
[1745671918943,1.7472,1794.5,1794.4,6.9161]
[1745671919239,1.7472,1794.5,1794.4,8.03032]
[1745671921640,4.32186,1794.7,1794.5,1.11412]
[1745671921837,5.91066,1794.7,1794.6,0.8015]
[1745671922045,5.91066,1794.7,1794.6,1.91559]
[1745671922233,5.91066,1794.7,1794.6,3.57149]
[1745671922642,4.7966,1794.7,1794.6,3.57149]
[1745671923043,5.91063,1794.7,1794.6,3.57149]
[1745671923443,4.7966,1794.7,1794.6,3.57149]
[1745671923746,5.91063,1794.7,1794.6,2.4574]
[1745671924143,4.7966,1794.7,1794.6,2.4574]
[1745671924348,3.2078,1794.7,1794.6,3.57149]
[1745671925543,4.8653,1794.7,1794.6,3.57149]
[1745671925940,3.2078,1794.7,1794.6,3.57149]
[1745671927440,1.8478,1794.8,1794.7,1.11403]
[1745671927636,1.8478,1794.8,1794.7,2.77153]
[1745671928034,1.8478,1794.8,1794.7,8.07953]
[1745671928942,3.2078,1794.9,1794.7,8.07953]
[1745671929134,3.2078,1794.9,1794.8,1.6575]
[1745671929335,3.2078,1794.9,1794.8,2.4641]
[1745671929749,4.32171,1794.9,1794.8,2.4641]
[1745671930137,4.32171,1794.9,1794.8,7.7721]
[1745671931246,1.11391,1794.9,1794.8,5.308]
[1745671931453,1.94361,1794.9,1794.8,5.308]
[1745671932649,0.8297,1794.9,1794.8,5.308]
[1745671932947,1.94361,1794.9,1794.8,5.308]
[1745671933151,3.55311,1794.9,1794.8,6.9668]
[1745671933538,1.6095,1794.9,1794.8,6.9668]
[1745671933853,4.0613,1795.1,1794.8,6.9668]
[1745671934051,4.0613,1795.1,1795.0,1.11384]
[1745671934245,1.6042,1795.2,1795.0,1.11384]
[1745671934547,2.71792,1795.2,1795.1,1.6198]
[1745671935051,1.11379,1795.1,1794.9,10.24756]
[1745671935349,2.71799,1795.1,1795.0,5.308]
[1745671935542,1.6042,1795.1,1795.0,5.308]
[1745671935944,1.6042,1795.1,1795.0,6.9278]
[1745671936238,1.6042,1795.1,1795.0,8.04164]
[1745671938038,1.6042,1795.1,1795.0,6.9278]
[1745671938243,2.71798,1795.1,1795.0,6.9278]
[1745671939653,1.6042,1795.1,1795.0,8.04164]
[1745671939949,2.71798,1795.1,1795.0,8.04164]
[1745671940152,1.6042,1795.1,1795.0,8.04164]
[1745671941554,2.7025,1795.2,1795.1,1.11378]
[1745671941853,0.855,1795.2,1795.1,2.77088]
[1745671942152,5.18311,1795.3,1795.1,2.77088]
[1745671942153,4.32151,1795.3,1795.1,2.77088]
[1745671942352,5.11116,1795.3,1795.2,1.92682]
[1745671942554,4.32146,1795.3,1795.2,3.59612]
[1745671942954,3.2078,1795.3,1795.2,3.59612]
[1745671943153,3.2078,1795.3,1795.2,8.90412]
[1745671943453,3.61734,1795.4,1795.2,8.90412]
[1745671943652,1.6568,1795.3,1795.2,8.90412]
[1745671943848,1.11356,1795.5,1795.3,1.11361]
[1745671944055,6.81006,1795.5,1795.3,3.65021]
[1745671944250,4.32124,1795.7,1795.3,7.8446]
[1745671944451,0.7338,1795.5,1795.4,1.6693]
[1745671944646,0.7338,1795.5,1795.4,2.7829]
[1745671945256,0.7338,1795.5,1795.4,8.0909]
[1745671946652,0.8319,1796.0,1795.4,16.9369]
[1745671946859,3.59295,1796.0,1795.8,1.11334]
[1745671947055,3.59295,1796.0,1795.5,4.9476]
[1745671947256,1.6478,1795.9,1795.8,1.11335]
[1745671947561,2.76109,1795.9,1795.7,2.85316]
[1745671947952,1.6478,1795.8,1795.7,2.85316]
[1745671948154,1.6478,1795.8,1795.7,8.16116]
[1745671948360,1.6478,1795.8,1795.7,7.0478]
[1745671948559,1.6478,1795.8,1795.7,8.16121]
[1745671949461,1.6478,1795.8,1795.7,6.42141]
[1745671949661,2.76115,1795.8,1795.7,5.308]
[1745671951666,1.6478,1795.8,1795.7,6.42141]
[1745671952166,1.94517,1796.0,1795.7,6.9685]
[1745671952462,3.64027,1796.0,1795.8,2.77382]
[1745671952863,1.94514,1796.0,1795.8,2.77383]
[1745671953363,1.94514,1796.0,1795.8,8.08183]
[1745671953563,1.94514,1796.0,1795.8,6.9685]
[1745671954173,1.94514,1796.0,1795.8,8.08185]
[1745671954479,1.94514,1796.0,1795.8,5.308]
[1745671954682,1.94514,1796.0,1795.8,6.42135]
[1745671955277,1.94514,1796.0,1795.8,6.42133]
[1745671955478,1.94514,1796.0,1795.8,5.308]
[1745671956072,1.94514,1796.0,1795.8,6.42135]
[1745671956073,0.8319,1796.0,1795.8,6.42135]
[1745671956275,0.8319,1796.0,1795.8,8.14615]
[1745671957482,0.8319,1796.0,1795.8,7.0328]
[1745671957883,0.8319,1796.0,1795.8,8.14614]
[1745671959577,1.94513,1796.0,1795.8,7.0328]
[1745671960573,0.8319,1796.0,1795.8,8.14615]
[1745671960974,1.94513,1796.0,1795.8,8.14615]
[1745671961186,1.94513,1796.0,1795.8,7.0328]
[1745671961787,1.94513,1796.0,1795.9,0.8059]
[1745671963283,1.94513,1796.0,1795.9,6.1139]
[1745671965473,1.94512,1796.0,1795.9,6.1139]
[1745671965677,0.8319,1796.0,1795.9,6.1139]
[1745671965880,1.94512,1796.0,1795.9,6.1139]
[1745671972085,1.94512,1796.0,1795.9,5.308]
[1745671972287,7.03624456,1796.0,1795.9,4.5742]
[1745671972582,8.75474456,1796.0,1795.9,4.5742]
[1745671972986,3.75474456,1796.0,1795.9,4.5742]
[1745671973187,1.11347,1795.6,1795.5,2.5816]
[1745671973784,1.11346,1795.7,1795.5,2.5816]
[1745671973990,1.93957,1795.6,1795.5,2.5816]
[1745671974191,1.93957,1795.6,1795.5,7.8896]
[1745671977690,0.8261,1795.6,1795.5,9.00313]
[1745671977891,2.80382,1795.7,1795.5,7.8896]
[1745671978190,1.11347,1795.6,1795.5,6.1656]
[1745671978390,2.71627,1795.6,1795.5,6.1656]
[1745671978991,2.71627,1795.6,1795.5,7.8323]
[1745671987289,2.71627,1795.6,1795.5,6.1656]
[1745671987497,11.01521767,1795.6,1795.5,5.308]
[1745671988096,6.01521767,1795.6,1795.5,5.308]
[1745671988298,1.11359,1795.5,1795.3,1.7106]
[1745671988603,1.1136,1795.4,1795.3,1.7106]
[1745671988799,1.11366,1795.3,1795.2,1.6639]
[1745671988989,1.11366,1795.3,1795.2,3.3745]
[1745671989195,1.11366,1795.3,1795.2,8.6825]
[1745671990302,2.84134,1795.4,1795.2,8.6825]
[1745671991002,1.7277,1795.4,1795.2,9.79619]
[1745671991202,3.2078,1795.6,1795.4,1.11359]
[1745671991203,4.32129,1795.6,1795.4,1.11359]
[1745671991398,4.32129,1795.6,1795.5,0.8056]
[1745671991596,4.32129,1795.6,1795.5,2.4063]
[1745671991797,5.97649,1795.6,1795.5,2.4063]
[1745671992305,5.97649,1795.6,1795.5,6.1136]
[1745671994800,1.92645,1795.7,1795.5,6.1136]
[1745671995102,1.11345,1795.7,1795.6,1.7217]
[1745671995502,2.80745,1795.7,1795.6,1.7217]
[1745671995804,2.80745,1795.7,1795.5,6.1136]
[1745671995805,1.11347,1795.6,1795.5,6.1136]
[1745671996006,2.80747,1795.6,1795.5,6.1136]
[1745671996703,1.694,1795.6,1795.5,6.1136]
[1745671996904,1.694,1795.6,1795.5,7.8353]
[1745671997103,2.80747,1795.6,1795.5,7.8353]
[1745671998198,1.694,1795.6,1795.5,8.94883]
[1745671998498,1.694,1795.6,1795.5,7.8353]
[1745671998499,2.80747,1795.6,1795.5,7.8353]
[1745672000912,2.80747,1795.6,1795.5,8.94883]
[1745672002013,1.694,1795.6,1795.5,8.94883]
[1745672002515,2.80747,1795.6,1795.5,7.8353]
[1745672003404,2.80747,1795.6,1795.5,8.94883]
[1745672004298,1.694,1795.6,1795.5,8.94883]
[1745672008902,1.694,1795.6,1795.5,7.8353]
[1745672009107,1.694,1795.6,1795.5,8.94883]
[1745672017318,1.11341,1795.7,1795.5,8.94883]
[1745672017518,2.75711,1795.7,1795.6,1.7155]
[1745672018111,1.6437,1795.7,1795.6,1.7155]
[1745672019118,2.75711,1795.7,1795.6,1.7155]
[1745672019320,4.8515,1795.7,1795.5,6.1136]
[1745672019521,1.6384,1795.6,1795.5,6.1136]
[1745672019817,1.6384,1795.6,1795.5,7.22713]
[1745672020219,0.7994,1795.8,1795.6,1.11344]
[1745672020414,3.55117,1795.8,1795.6,1.11344]
[1745672020817,1.6384,1795.7,1795.6,1.11344]
[1745672021713,1.6384,1795.7,1795.5,8.93489]
[1745672023814,2.75183,1795.7,1795.5,8.93489]
[1745672026723,2.75183,1795.7,1795.6,1.5953]
[1745672040331,1.11347,1795.6,1795.5,6.1136]
[1745672040533,2.78927,1795.6,1795.5,6.1136]
[1745672041134,2.78927,1795.6,1795.5,7.821]
[1745672041828,1.6758,1795.6,1795.5,7.821]
[1745672042430,1.91278,1795.8,1795.5,7.821]
[1745672042734,3.58858,1795.8,1795.6,1.7074]
[1745672043130,1.11341,1795.7,1795.6,1.7074]
[1745672044228,2.80911,1795.7,1795.6,1.7074]
[1745672049034,1.6957,1795.7,1795.5,6.1136]
[1745672049339,2.85851092,1795.6,1795.5,5.308]
[1745672049540,7.54111092,1795.6,1795.5,4.15495]
[1745672049838,12.54111092,1795.6,1795.5,2.97156]
[1745672050238,1.11378,1795.1,1795.0,5.918]
[1745672050538,1.11375,1795.2,1795.0,5.918]
[1745672050739,1.11378,1795.1,1795.0,7.6435]
[1745672050941,2.76768,1795.1,1795.0,7.6435]
[1745672051241,2.76768,1795.1,1795.0,12.9515]
[1745672051531,2.76768,1795.1,1795.0,11.226]
[1745672055841,2.76768,1795.1,1795.0,5.308]
[1745672059249,5.97548,1795.1,1795.0,5.308]
[1745672059744,6.06665799,1795.1,1795.0,5.308]
[1745672060243,1.11388,1795.0,1794.8,0.8408]
[1745672060544,2.69888,1795.0,1794.8,0.8408]
[1745672060746,0.8276,1794.9,1794.8,0.8408]
[1745672060945,2.4126,1794.9,1794.8,0.8408]
[1745672061145,2.4126,1794.9,1794.8,7.26277]
[1745672061348,2.4126,1794.9,1794.8,8.91877]
[1745672061737,2.4126,1794.9,1794.8,7.8048]
[1745672062139,2.4126,1794.9,1794.8,8.91877]
[1745672062540,3.52651,1794.9,1794.8,7.8048]
[1745672064049,3.52651,1794.9,1794.8,8.91877]
[1745672064443,3.52651,1794.9,1794.8,5.308]
[1745672064841,3.52651,1794.9,1794.8,6.1186]
[1745672065545,3.52651,1794.9,1794.8,7.7271]
[1745672066444,3.2078,1795.1,1794.8,7.7271]
[1745672066649,2.71492,1795.1,1794.9,1.6085]